[Event "MČR juniorů a juniorek v rapid šachu 2023"]
[Site "Czech Republic"]
[Date "2023.09.23"]
[Round "4.29"]
[White "Housa, Vojtech"]
[Black "Halama, Tomas"]
[Result "1-0"]
[TimeControl "20 min + 5 sec per move"]
[WhiteFideId "23736364"]
[BlackFideId "397970"]
[WhiteElo "1539"]
[BlackElo "1306"]

1. e4 {[%clk 00:20:09]} {[%emt 00:00:01]} c5 {[%clk 00:20:07]} {[%emt
00:00:04]} 2. Nf3 {[%clk 00:20:12]} {[%emt 00:00:01]} Nc6 {[%clk 00:20:09]}
{[%emt 00:00:03]} 3. d4 {[%clk 00:20:17]} cxd4 {[%clk 00:20:13]} {[%emt
00:00:02]} 4. Nxd4 {[%clk 00:20:20]} {[%emt 00:00:01]} d6 {[%clk 00:20:17]} 5.
Nc3 {[%clk 00:20:17]} {[%emt 00:00:08]} Bd7 {[%clk 00:20:20]} {[%emt 00:00:02]}
6. Bb5 {[%clk 00:20:20]} {[%emt 00:00:02]} Nf6 {[%clk 00:20:22]} {[%emt
00:00:02]} 7. O-O {[%clk 00:20:18]} {[%emt 00:00:08]} e6 {[%clk 00:20:24]}
{[%emt 00:00:04]} 8. Bg5 {[%clk 00:20:13]} {[%emt 00:00:09]} Be7 {[%clk
00:20:27]} {[%emt 00:00:01]} 9. Re1 {[%clk 00:20:13]} {[%emt 00:00:05]} O-O
{[%clk 00:20:30]} {[%emt 00:00:03]} 10. Nxc6 {[%clk 00:19:38]} {[%emt
00:00:40]} Bxc6 {[%clk 00:20:33]} {[%emt 00:00:02]} 11. Bxc6 {[%clk 00:18:18]}
{[%emt 00:01:25]} bxc6 {[%clk 00:20:34]} {[%emt 00:00:03]} 12. Qf3 {[%clk
00:18:22]} h6 {[%clk 00:19:32]} {[%emt 00:01:08]} 13. Bh4 {[%clk 00:17:36]}
{[%emt 00:00:51]} d5 {[%clk 00:17:59]} {[%emt 00:01:38]} 14. Rad1 {[%clk
00:16:21]} {[%emt 00:01:20]} Qc7 {[%clk 00:17:17]} {[%emt 00:00:46]} 15. exd5
{[%clk 00:15:55]} {[%emt 00:00:32]} cxd5 {[%clk 00:17:21]} {[%emt 00:00:01]} 16.
Bg3 {[%clk 00:14:56]} {[%emt 00:01:04]} Qc6 {[%clk 00:16:23]} {[%emt 00:01:03]}
17. Be5 {[%clk 00:14:26]} {[%emt 00:00:35]} Rad8 {[%clk 00:15:54]} {[%emt
00:00:33]} 18. Rd4 {[%clk 00:13:50]} {[%emt 00:00:41]} Nd7 {[%clk 00:13:43]}
{[%emt 00:02:16]} 19. Bf4 {[%clk 00:12:23]} {[%emt 00:01:32]} Bf6 {[%clk
00:12:58]} {[%emt 00:00:51]} 20. Rdd1 {[%clk 00:10:29]} {[%emt 00:02:00]} Qc4
{[%clk 00:10:40]} {[%emt 00:02:22]} 21. Qg3 {[%clk 00:09:45]} {[%emt 00:00:48]}
Kh7 {[%clk 00:10:18]} {[%emt 00:00:27]} 22. Qd3+ {[%clk 00:08:25]} {[%emt
00:01:26]} Qxd3 {[%clk 00:10:15]} {[%emt 00:00:08]} 23. Rxd3 {[%clk 00:08:26]}
{[%emt 00:00:04]} Nc5 {[%clk 00:09:54]} {[%emt 00:00:26]} 24. Rg3 {[%clk
00:08:10]} {[%emt 00:00:17]} a6 {[%clk 00:09:01]} {[%emt 00:01:03]} 25. h3
{[%clk 00:07:48]} {[%emt 00:00:26]} Rc8 {[%clk 00:08:40]} {[%emt 00:00:26]} 26.
b4 {[%clk 00:04:44]} {[%emt 00:03:09]} Nd7 {[%clk 00:08:00]} {[%emt 00:00:45]}
27. Bd2 {[%clk 00:03:18]} {[%emt 00:01:31]} d4 {[%clk 00:07:25]} {[%emt
00:00:40]} 28. Ne4 {[%clk 00:02:23]} {[%emt 00:01:00]} Rxc2 {[%clk 00:06:22]}
{[%emt 00:01:08]} 29. Nxf6+ {[%clk 00:02:10]} {[%emt 00:00:18]} Nxf6 {[%clk
00:06:25]} {[%emt 00:00:01]} 30. Rd3 {[%clk 00:02:03]} {[%emt 00:00:12]} Rd8
{[%clk 00:06:10]} {[%emt 00:00:19]} 31. a3 {[%clk 00:02:05]} {[%emt 00:00:05]}
Rd6 {[%clk 00:05:40]} {[%emt 00:00:34]} 32. Bf4 {[%clk 00:01:43]} {[%emt
00:00:27]} Rd7 {[%clk 00:05:41]} {[%emt 00:00:04]} 33. Be5 {[%clk 00:01:29]}
{[%emt 00:00:19]} Rd5 {[%clk 00:04:11]} {[%emt 00:01:35]} 34. Bxd4 {[%clk
00:01:14]} {[%emt 00:00:20]} Rc8 {[%clk 00:03:59]} {[%emt 00:00:16]} 35. Red1
{[%clk 00:01:06]} {[%emt 00:00:13]} Rcd8 {[%clk 00:04:03]} {[%emt 00:00:02]} 36.
f3 {[%clk 00:00:44]} {[%emt 00:00:26]} Rxd4 {[%clk 00:04:06]} {[%emt 00:00:03]}
37. Rxd4 {[%clk 00:00:47]} {[%emt 00:00:02]} Rxd4 {[%clk 00:04:04]} {[%emt
00:00:07]} 38. Rxd4 {[%clk 00:00:51]} {[%emt 00:00:01]} Nd5 {[%clk 00:04:08]}
{[%emt 00:00:01]} 39. Rc4 {[%clk 00:00:49]} {[%emt 00:00:06]} Kg6 {[%clk
00:04:09]} {[%emt 00:00:05]} 40. Rc6 {[%clk 00:00:53]} {[%emt 00:00:01]} Kf5
{[%clk 00:04:01]} {[%emt 00:00:12]} 41. Rxa6 {[%clk 00:00:55]} {[%emt
00:00:03]} Nc7 {[%clk 00:04:05]} {[%emt 00:00:02]} 42. Ra7 {[%clk 00:00:59]}
{[%emt 00:00:02]} Nb5 {[%clk 00:04:03]} {[%emt 00:00:06]} 43. Rxf7+ {[%clk
00:00:59]} {[%emt 00:00:04]} Kg6 {[%clk 00:04:06]} {[%emt 00:00:02]} 44. Rb7
{[%clk 00:00:59]} {[%emt 00:00:05]} Nxa3 {[%clk 00:04:10]} {[%emt 00:00:02]} 45.
b5 {[%clk 00:01:02]} Kf6 {[%clk 00:04:12]} {[%emt 00:00:03]} 46. b6 {[%clk
00:01:06]} {[%emt 00:00:02]} Nc4 {[%clk 00:04:15]} {[%emt 00:00:02]} 47. Rb8
{[%clk 00:01:10]} {[%emt 00:00:01]} Ke5 {[%clk 00:04:07]} {[%emt 00:00:14]} 48.
b7 {[%clk 00:01:13]} {[%emt 00:00:02]} Nd6 {[%clk 00:04:09]} {[%emt 00:00:02]}
49. Rg8 {[%clk 00:01:02]} {[%emt 00:00:15]} Nxb7 {[%clk 00:04:12]} {[%emt
00:00:03]} 50. Rxg7 {[%clk 00:01:06]} Nd6 {[%clk 00:04:15]} {[%emt 00:00:01]}
51. Rg6 {[%clk 00:00:57]} {[%emt 00:00:14]} h5 {[%clk 00:04:07]} {[%emt
00:00:13]} 52. Rg5+ {[%clk 00:01:01]} Kf6 {[%clk 00:04:11]} {[%emt 00:00:03]}
53. Rxh5 {[%clk 00:01:05]} Nf5 {[%clk 00:04:15]} {[%emt 00:00:01]} 54. Rh8
{[%clk 00:01:05]} {[%emt 00:00:05]} 1-0

[Event "MČR juniorů a juniorek v rapid šachu 2023"]
[Site "Czech Republic"]
[Date "2023.09.23"]
[Round "4.32"]
[White "Hosova, Stella"]
[Black "Macova, Marketa"]
[Result "0-1"]
[TimeControl "20 min + 5 sec per move"]
[WhiteFideId "23710489"]
[BlackFideId "23715588"]
[WhiteElo "1164"]
[BlackElo "1228"]

1. d4 {[%clk 00:20:09]} Nf6 {[%clk 00:20:08]} {[%emt 00:00:03]} 2. Bf4 {[%clk
00:20:12]} g6 {[%clk 00:20:09]} {[%emt 00:00:04]} 3. e3 {[%clk 00:20:15]}
{[%emt 00:00:02]} d6 {[%clk 00:20:09]} {[%emt 00:00:05]} 4. Nf3 {[%clk
00:20:05]} {[%emt 00:00:16]} Bg7 {[%clk 00:20:12]} {[%emt 00:00:01]} 5. Bd3
{[%clk 00:20:04]} {[%emt 00:00:06]} O-O {[%clk 00:20:15]} {[%emt 00:00:03]} 6.
Nbd2 {[%clk 00:20:01]} {[%emt 00:00:08]} Bg4 {[%clk 00:20:16]} {[%emt
00:00:03]} 7. h3 {[%clk 00:20:01]} {[%emt 00:00:06]} Bxf3 {[%clk 00:20:14]}
{[%emt 00:00:06]} 8. Qxf3 {[%clk 00:20:00]} {[%emt 00:00:06]} Nc6 {[%clk
00:20:03]} {[%emt 00:00:16]} 9. O-O {[%clk 00:19:24]} {[%emt 00:00:41]} Re8
{[%clk 00:19:36]} {[%emt 00:00:32]} 10. Nb3 {[%clk 00:18:07]} {[%emt 00:01:22]}
e5 {[%clk 00:18:14]} {[%emt 00:01:28]} 11. Bb5 {[%clk 00:16:04]} {[%emt
00:02:08]} exf4 {[%clk 00:17:18]} {[%emt 00:01:01]} 12. exf4 {[%clk 00:15:42]}
{[%emt 00:00:27]} d5 {[%clk 00:14:12]} {[%emt 00:03:10]} 13. g4 {[%clk
00:13:49]} {[%emt 00:01:58]} Qd6 {[%clk 00:13:33]} {[%emt 00:00:44]} 14. f5
{[%clk 00:13:20]} {[%emt 00:00:33]} Rf8 {[%clk 00:12:34]} {[%emt 00:01:04]} 15.
Rfe1 {[%clk 00:12:37]} {[%emt 00:00:48]} a6 {[%clk 00:11:33]} {[%emt 00:01:07]}
16. Bd3 {[%clk 00:12:27]} {[%emt 00:00:14]} Nb4 {[%clk 00:10:41]} {[%emt
00:00:58]} 17. c3 {[%clk 00:11:58]} {[%emt 00:00:33]} Nxd3 {[%clk 00:10:39]}
{[%emt 00:00:07]} 18. Qxd3 {[%clk 00:12:01]} {[%emt 00:00:02]} Qf4 {[%clk
00:09:28]} {[%emt 00:01:16]} 19. Re3 {[%clk 00:11:35]} {[%emt 00:00:30]} Qd6
{[%clk 00:07:21]} {[%emt 00:02:13]} 20. Rae1 {[%clk 00:11:19]} {[%emt
00:00:21]} Rae8 {[%clk 00:07:15]} {[%emt 00:00:11]} 21. Nd2 {[%clk 00:10:17]}
{[%emt 00:01:07]} Rxe3 {[%clk 00:07:04]} {[%emt 00:00:16]} 22. Rxe3 {[%clk
00:10:19]} {[%emt 00:00:03]} Bh6 {[%clk 00:06:34]} {[%emt 00:00:34]} 23. Rg3
{[%clk 00:09:15]} {[%emt 00:01:09]} Bxd2 {[%clk 00:06:32]} {[%emt 00:00:08]} 24.
Qxd2 {[%clk 00:09:17]} {[%emt 00:00:03]} Ne4 {[%clk 00:06:24]} {[%emt
00:00:13]} 25. Qe3 {[%clk 00:08:20]} {[%emt 00:01:02]} Nxg3 {[%clk 00:06:18]}
{[%emt 00:00:11]} 26. fxg3 {[%clk 00:08:22]} {[%emt 00:00:03]} Qd7 {[%clk
00:05:15]} {[%emt 00:01:08]} 27. f6 {[%clk 00:07:59]} {[%emt 00:00:28]} Qe6
{[%clk 00:04:05]} {[%emt 00:01:15]} 28. Qf4 {[%clk 00:07:41]} {[%emt 00:00:20]}
Re8 {[%clk 00:03:27]} {[%emt 00:00:46]} 29. h4 {[%clk 00:06:57]} {[%emt
00:00:49]} Qe1+ {[%clk 00:02:48]} {[%emt 00:00:44]} 30. Kg2 {[%clk 00:06:50]}
{[%emt 00:00:06]} Re2+ {[%clk 00:02:44]} {[%emt 00:00:14]} 0-1

[Event "MČR juniorů a juniorek v rapid šachu 2023"]
[Site "Czech Republic"]
[Date "2023.09.23"]
[Round "4.34"]
[White "Martinkovicova, Nela"]
[Black "Zadrapova, Gabriela"]
[Result "0-1"]
[TimeControl "20 min + 5 sec per move"]
[WhiteFideId "23715596"]
[BlackFideId "23753056"]
[WhiteElo "1049"]
[BlackElo "1206"]

1. c4 {[%emt 00:00:11]} e5 {[%clk 00:20:05]} {[%emt 00:00:03]} 2. Nc3 {[%clk
00:20:00]} {[%emt 00:00:05]} Nf6 {[%clk 00:20:06]} {[%emt 00:00:03]} 3. g3
{[%clk 00:20:03]} {[%emt 00:00:04]} Nc6 {[%clk 00:19:53]} {[%emt 00:00:17]} 4.
Bg2 {[%clk 00:20:03]} {[%emt 00:00:05]} Bc5 {[%clk 00:19:41]} {[%emt 00:00:17]}
5. d3 {[%clk 00:19:57]} {[%emt 00:00:12]} O-O {[%clk 00:19:32]} {[%emt
00:00:13]} 6. Bg5 {[%clk 00:19:52]} {[%emt 00:00:10]} d6 {[%clk 00:19:18]}
{[%emt 00:00:19]} 7. Nd5 {[%clk 00:19:40]} {[%emt 00:00:18]} h6 {[%clk
00:18:54]} {[%emt 00:00:28]} 8. Nxf6+ {[%clk 00:19:09]} {[%emt 00:00:36]} gxf6
{[%clk 00:18:57]} {[%emt 00:00:02]} 9. Bxh6 {[%clk 00:19:06]} {[%emt 00:00:08]}
Re8 {[%clk 00:18:51]} {[%emt 00:00:11]} 10. e3 {[%clk 00:18:02]} {[%emt
00:01:09]} Bb4+ {[%clk 00:18:49]} {[%emt 00:00:07]} 11. Kf1 {[%clk 00:17:48]}
{[%emt 00:00:15]} Bf5 {[%clk 00:17:30]} {[%emt 00:01:27]} 12. Be4 {[%clk
00:17:04]} {[%emt 00:00:50]} Bxe4 {[%clk 00:17:03]} {[%emt 00:00:32]} 13. dxe4
{[%clk 00:16:34]} {[%emt 00:00:35]} Ne7 {[%clk 00:17:05]} {[%emt 00:00:03]} 14.
Qg4+ {[%clk 00:16:02]} {[%emt 00:00:37]} Ng6 {[%clk 00:17:06]} {[%emt
00:00:04]} 15. Nf3 {[%clk 00:15:47]} {[%emt 00:00:20]} Kh7 {[%clk 00:16:42]}
{[%emt 00:00:29]} 16. Qh3 {[%clk 00:14:56]} {[%emt 00:00:55]} Rh8 {[%clk
00:12:43]} {[%emt 00:04:05]} 17. Bg5+ {[%clk 00:08:03]} {[%emt 00:06:57]} Kg8
{[%clk 00:12:42]} {[%emt 00:00:06]} 18. Bh4 {[%clk 00:07:46]} {[%emt 00:00:23]}
Rb8 {[%clk 00:11:22]} {[%emt 00:01:25]} 19. Rc1 {[%clk 00:06:24]} {[%emt
00:01:26]} b5 {[%clk 00:11:00]} {[%emt 00:00:28]} 20. a3 {[%clk 00:05:31]}
{[%emt 00:00:59]} Ba5 {[%clk 00:11:03]} {[%emt 00:00:01]} 21. b4 {[%clk
00:05:30]} {[%emt 00:00:06]} Bxb4 {[%clk 00:10:55]} {[%emt 00:00:13]} 22. axb4
{[%clk 00:05:27]} {[%emt 00:00:08]} bxc4 {[%clk 00:10:59]} {[%emt 00:00:01]} 23.
Rxc4 {[%clk 00:05:17]} {[%emt 00:00:15]} d5 {[%clk 00:10:45]} {[%emt 00:00:20]}
24. exd5 {[%clk 00:04:08]} {[%emt 00:01:14]} Qxd5 {[%clk 00:10:43]} {[%emt
00:00:06]} 25. Rg4 {[%clk 00:02:10]} {[%emt 00:02:01]} Qxf3 {[%clk 00:10:16]}
{[%emt 00:00:34]} 26. Rg1 {[%clk 00:01:45]} {[%emt 00:00:30]} f5 {[%clk
00:09:55]} {[%emt 00:00:25]} 27. Rxg6+ {[%clk 00:01:13]} {[%emt 00:00:37]} fxg6
{[%clk 00:09:49]} {[%emt 00:00:12]} 28. e4 {[%clk 00:00:27]} {[%emt 00:00:51]}
Rxb4 {[%clk 00:09:32]} {[%emt 00:00:22]} 29. exf5 {[%clk 00:00:11]} {[%emt
00:00:22]} Rb1# {[%emt 00:00:06]} 0-1

[Event "MČR juniorů a juniorek v rapid šachu 2023"]
[Site "Czech Republic"]
[Date "2023.09.23"]
[Round "5.1"]
[White "Cibulka, Josef"]
[Black "Prazak, Daniel"]
[Result "1-0"]
[TimeControl "20 min + 5 sec per move"]
[WhiteFideId "23708042"]
[BlackFideId "23709456"]
[WhiteElo "1922"]
[BlackElo "2029"]

1. e4 {[%clk 00:20:06]} {[%emt 00:00:04]} e6 {[%clk 00:19:48]} {[%emt
00:00:22]} 2. d3 {[%clk 00:20:06]} {[%emt 00:00:05]} d5 {[%clk 00:19:52]} 3.
Nd2 {[%clk 00:20:09]} {[%emt 00:00:02]} Nf6 {[%clk 00:19:55]} {[%emt 00:00:02]}
4. Ngf3 {[%clk 00:20:11]} {[%emt 00:00:03]} Nc6 {[%clk 00:19:52]} {[%emt
00:00:08]} 5. g3 {[%clk 00:20:14]} {[%emt 00:00:02]} dxe4 {[%clk 00:19:55]}
{[%emt 00:00:03]} 6. dxe4 {[%clk 00:20:17]} {[%emt 00:00:02]} Bc5 {[%clk
00:19:57]} {[%emt 00:00:02]} 7. Bg2 {[%clk 00:20:18]} {[%emt 00:00:03]} O-O
{[%clk 00:19:54]} {[%emt 00:00:09]} 8. O-O {[%clk 00:20:19]} {[%emt 00:00:04]}
e5 {[%clk 00:19:56]} {[%emt 00:00:03]} 9. c3 {[%clk 00:20:18]} {[%emt
00:00:05]} a5 {[%clk 00:19:59]} {[%emt 00:00:03]} 10. Qc2 {[%clk 00:20:17]}
{[%emt 00:00:06]} Qe7 {[%clk 00:20:02]} {[%emt 00:00:03]} 11. Nb3 {[%clk
00:19:29]} {[%emt 00:00:52]} Bb6 {[%clk 00:19:35]} {[%emt 00:00:32]} 12. Bg5
{[%clk 00:19:16]} {[%emt 00:00:17]} h6 {[%clk 00:19:21]} {[%emt 00:00:20]} 13.
Bxf6 {[%clk 00:19:09]} {[%emt 00:00:12]} Qxf6 {[%clk 00:19:25]} 14. Qe2 {[%clk
00:18:29]} {[%emt 00:00:44]} Be6 {[%clk 00:17:58]} {[%emt 00:01:32]} 15. Rfd1
{[%clk 00:17:58]} {[%emt 00:00:36]} a4 {[%clk 00:16:50]} {[%emt 00:01:14]} 16.
Nbd2 {[%clk 00:17:35]} {[%emt 00:00:28]} Rfd8 {[%clk 00:16:29]} {[%emt
00:00:27]} 17. Nc4 {[%clk 00:16:20]} {[%emt 00:01:20]} Bc5 {[%clk 00:16:29]}
{[%emt 00:00:04]} 18. b4 {[%clk 00:14:58]} {[%emt 00:01:26]} axb3 {[%clk
00:14:44]} {[%emt 00:01:50]} 19. axb3 {[%clk 00:15:01]} {[%emt 00:00:02]} Rxd1+
{[%clk 00:07:32]} {[%emt 00:07:18]} 20. Rxd1 {[%clk 00:14:58]} {[%emt
00:00:08]} b5 {[%clk 00:07:18]} {[%emt 00:00:19]} 21. Ncd2 {[%clk 00:14:26]}
{[%emt 00:00:35]} Rb8 {[%clk 00:06:17]} {[%emt 00:01:07]} 22. b4 {[%clk
00:13:20]} {[%emt 00:01:12]} Bb6 {[%clk 00:05:41]} {[%emt 00:00:41]} 23. Ra1
{[%clk 00:10:46]} {[%emt 00:02:38]} Ne7 {[%clk 00:05:17]} {[%emt 00:00:29]} 24.
Nf1 {[%clk 00:10:13]} {[%emt 00:00:38]} c6 {[%clk 00:04:32]} {[%emt 00:00:51]}
25. Ne3 {[%clk 00:10:11]} {[%emt 00:00:06]} Nc8 {[%clk 00:03:41]} {[%emt
00:00:55]} 26. Nd2 {[%clk 00:09:50]} {[%emt 00:00:26]} Nd6 {[%clk 00:02:58]}
{[%emt 00:00:49]} 27. Ra6 {[%clk 00:09:02]} {[%emt 00:00:54]} Qe7 {[%clk
00:02:28]} {[%emt 00:00:35]} 28. Ra1 {[%clk 00:05:32]} {[%emt 00:03:35]} Qd7
{[%clk 00:01:51]} {[%emt 00:00:42]} 29. Rd1 {[%clk 00:04:13]} {[%emt 00:01:24]}
f6 {[%clk 00:01:16]} {[%emt 00:00:41]} 30. Qd3 {[%clk 00:03:23]} {[%emt
00:00:54]} Qc7 {[%clk 00:00:46]} {[%emt 00:00:35]} 31. Nf5 {[%clk 00:02:55]}
{[%emt 00:00:33]} Rd8 {[%clk 00:00:23]} {[%emt 00:00:28]} 32. Nxd6 {[%clk
00:02:38]} {[%emt 00:00:22]} Rxd6 {[%clk 00:00:27]} {[%emt 00:00:02]} 33. Qe2
{[%clk 00:02:22]} {[%emt 00:00:20]} Qd7 {[%clk 00:00:09]} {[%emt 00:00:24]} 34.
Bf3 {[%clk 00:02:24]} {[%emt 00:00:02]} Qa7 {[%clk 00:00:12]} {[%emt 00:00:02]}
35. Kg2 {[%clk 00:02:03]} {[%emt 00:00:26]} Qa2 {[%clk 00:00:08]} {[%emt
00:00:09]} 36. Nf1 {[%clk 00:01:27]} {[%emt 00:00:40]} Rxd1 {[%clk 00:00:08]}
{[%emt 00:00:06]} 37. Qxa2 {[%clk 00:01:29]} {[%emt 00:00:04]} Bxa2 {[%clk
00:00:10]} {[%emt 00:00:02]} 38. Bxd1 {[%clk 00:01:33]} c5 {[%clk 00:00:07]}
{[%emt 00:00:08]} 39. Be2 {[%clk 00:01:22]} {[%emt 00:00:16]} Bc4 {[%clk
00:00:06]} {[%emt 00:00:06]} 40. Bxc4+ {[%clk 00:01:18]} {[%emt 00:00:09]} bxc4
{[%clk 00:00:11]} 41. bxc5 {[%clk 00:01:21]} {[%emt 00:00:03]} Bxc5 {[%clk
00:00:14]} 42. Nd2 {[%clk 00:01:24]} {[%emt 00:00:01]} Kf7 {[%clk 00:00:11]}
{[%emt 00:00:09]} 43. Nxc4 {[%clk 00:01:28]} Ke6 {[%clk 00:00:15]} 44. Kf1
{[%clk 00:01:08]} {[%emt 00:00:25]} Ba7 {[%clk 00:00:09]} {[%emt 00:00:12]} 45.
Ke2 {[%clk 00:01:06]} {[%emt 00:00:06]} g6 {[%clk 00:00:10]} {[%emt 00:00:05]}
46. f3 {[%emt 00:00:04]} f5 {[%clk 00:00:12]} {[%emt 00:00:03]} 47. Ne3 {[%clk
00:00:56]} {[%emt 00:00:17]} Kf6 {[%clk 00:00:08]} {[%emt 00:00:08]} 48. Nd5+
{[%clk 00:00:57]} {[%emt 00:00:04]} Kg5 {[%clk 00:00:08]} {[%emt 00:00:06]} 49.
h4+ {[%clk 00:00:58]} {[%emt 00:00:03]} Kh5 {[%clk 00:00:10]} {[%emt 00:00:03]}
50. Nf6# {[%clk 00:01:01]} 1-0

[Event "MČR juniorů a juniorek v rapid šachu 2023"]
[Site "Czech Republic"]
[Date "2023.09.23"]
[Round "5.2"]
[White "Ocelak, Jakub"]
[Black "Steinbauer, Sebastian"]
[Result "1-0"]
[TimeControl "20 min + 5 sec per move"]
[WhiteFideId "23707933"]
[BlackFideId "399272"]
[WhiteElo "2025"]
[BlackElo "1880"]

1. Nf3 {[%clk 00:19:28]} {[%emt 00:00:37]} d5 {[%clk 00:19:55]} {[%emt
00:00:20]} 2. c4 {[%clk 00:19:32]} {[%emt 00:00:01]} c6 {[%clk 00:19:53]}
{[%emt 00:00:07]} 3. g3 {[%clk 00:19:25]} {[%emt 00:00:12]} Nf6 {[%clk
00:19:30]} {[%emt 00:00:28]} 4. Bg2 {[%clk 00:19:28]} {[%emt 00:00:02]} dxc4
{[%clk 00:19:28]} {[%emt 00:00:07]} 5. O-O {[%clk 00:19:29]} {[%emt 00:00:03]}
Nbd7 {[%clk 00:19:22]} {[%emt 00:00:12]} 6. Na3 {[%clk 00:19:32]} Nb6 {[%clk
00:19:26]} {[%emt 00:00:03]} 7. Ne5 {[%clk 00:19:35]} {[%emt 00:00:02]} Be6
{[%clk 00:19:06]} {[%emt 00:00:24]} 8. Qc2 {[%clk 00:19:38]} {[%emt 00:00:02]}
Qd4 {[%clk 00:17:58]} {[%emt 00:01:13]} 9. Nxc6 {[%clk 00:19:41]} {[%emt
00:00:02]} Qd7 {[%clk 00:17:09]} {[%emt 00:00:54]} 10. Ne5 {[%clk 00:19:01]}
{[%emt 00:00:45]} Qc8 {[%clk 00:16:45]} {[%emt 00:00:30]} 11. d3 {[%clk
00:17:15]} {[%emt 00:01:51]} g6 {[%clk 00:14:32]} {[%emt 00:02:18]} 12. dxc4
{[%clk 00:16:44]} {[%emt 00:00:35]} Bg7 {[%clk 00:14:31]} {[%emt 00:00:07]} 13.
c5 {[%clk 00:14:50]} {[%emt 00:01:58]} Nbd5 {[%clk 00:13:13]} {[%emt 00:01:23]}
14. Qa4+ {[%clk 00:13:09]} {[%emt 00:01:46]} Nd7 {[%clk 00:12:54]} {[%emt
00:00:25]} 15. Nxd7 {[%clk 00:12:30]} {[%emt 00:00:43]} Bxd7 {[%clk 00:12:55]}
{[%emt 00:00:05]} 16. Qb3 {[%clk 00:12:33]} {[%emt 00:00:01]} e6 {[%clk
00:12:24]} {[%emt 00:00:38]} 17. e4 {[%clk 00:12:20]} {[%emt 00:00:17]} Nc7
{[%clk 00:12:17]} {[%emt 00:00:13]} 18. Nc4 {[%clk 00:11:24]} {[%emt 00:00:59]}
O-O {[%clk 00:11:24]} {[%emt 00:00:58]} 19. Nd6 {[%clk 00:11:25]} {[%emt
00:00:05]} Qb8 {[%clk 00:11:27]} {[%emt 00:00:02]} 20. Bf4 {[%clk 00:10:45]}
{[%emt 00:00:43]} e5 {[%clk 00:10:59]} {[%emt 00:00:35]} 21. Be3 {[%clk
00:10:22]} {[%emt 00:00:27]} Bc6 {[%clk 00:10:45]} {[%emt 00:00:20]} 22. Bh3
{[%clk 00:08:47]} {[%emt 00:01:39]} a6 {[%clk 00:08:17]} {[%emt 00:02:34]} 23.
a4 {[%clk 00:08:12]} {[%emt 00:00:40]} a5 {[%clk 00:07:48]} {[%emt 00:00:34]}
24. Rad1 {[%clk 00:06:53]} {[%emt 00:01:24]} Na6 {[%clk 00:07:48]} {[%emt
00:00:05]} 25. Nc4 {[%clk 00:06:52]} {[%emt 00:00:05]} Qc7 {[%clk 00:07:36]}
{[%emt 00:00:18]} 26. Nb6 {[%emt 00:00:57]} Rad8 {[%emt 00:00:04]} 27. Bg2
{[%clk 00:05:38]} {[%emt 00:00:17]} Nb4 {[%clk 00:07:15]} {[%emt 00:00:26]} 28.
Nd5 {[%clk 00:05:01]} {[%emt 00:00:42]} Bxd5 {[%clk 00:06:58]} {[%emt
00:00:22]} 29. exd5 {[%clk 00:05:04]} {[%emt 00:00:03]} Kh8 {[%clk 00:06:36]}
{[%emt 00:00:27]} 30. d6 {[%clk 00:04:43]} {[%emt 00:00:26]} Qc8 {[%clk
00:06:37]} {[%emt 00:00:04]} 31. Rc1 {[%clk 00:04:19]} {[%emt 00:00:29]} f5
{[%clk 00:06:31]} {[%emt 00:00:11]} 32. Bg5 {[%clk 00:04:08]} {[%emt 00:00:15]}
Bf6 {[%clk 00:05:45]} {[%emt 00:00:52]} 33. Bxf6+ {[%clk 00:04:09]} {[%emt
00:00:04]} Rxf6 {[%clk 00:05:48]} {[%emt 00:00:02]} 34. Qc4 {[%clk 00:03:54]}
{[%emt 00:00:19]} e4 {[%clk 00:05:41]} {[%emt 00:00:12]} 35. f3 {[%clk
00:03:10]} {[%emt 00:00:49]} Nd3 {[%clk 00:03:00]} {[%emt 00:02:46]} 36. Rc3
{[%clk 00:03:13]} {[%emt 00:00:02]} exf3 {[%clk 00:02:21]} {[%emt 00:00:45]} 37.
Bxf3 {[%clk 00:02:43]} {[%emt 00:00:35]} Ne5 {[%clk 00:02:25]} {[%emt
00:00:02]} 38. Qd4 {[%clk 00:02:46]} Nxf3+ {[%clk 00:02:25]} {[%emt 00:00:05]}
39. Rfxf3 {[%clk 00:02:50]} Kg7 {[%clk 00:02:26]} {[%emt 00:00:04]} 40. Rfe3
{[%clk 00:02:50]} {[%emt 00:00:04]} Rdf8 {[%clk 00:02:22]} {[%emt 00:00:10]} 41.
Re7+ {[%clk 00:02:45]} {[%emt 00:00:10]} Kg8 {[%clk 00:02:24]} {[%emt
00:00:02]} 42. Qd5+ {[%clk 00:02:42]} {[%emt 00:00:08]} Kh8 {[%clk 00:02:25]}
{[%emt 00:00:05]} 43. Qxb7 {[%clk 00:02:42]} {[%emt 00:00:05]} Qxb7 {[%clk
00:02:04]} {[%emt 00:00:26]} 44. Rxb7 {[%clk 00:02:45]} {[%emt 00:00:02]} f4
{[%clk 00:02:08]} 45. Rf3 {[%clk 00:02:22]} {[%emt 00:00:28]} fxg3 {[%clk
00:02:10]} {[%emt 00:00:04]} 46. Rxf6 {[%clk 00:02:25]} gxh2+ {[%clk 00:02:14]}
{[%emt 00:00:02]} 47. Kxh2 {[%clk 00:02:28]} {[%emt 00:00:02]} Rxf6 {[%clk
00:02:17]} {[%emt 00:00:02]} 48. Rb8+ {[%clk 00:02:31]} {[%emt 00:00:01]} Kg7
{[%clk 00:02:21]} {[%emt 00:00:01]} 49. d7 {[%emt 00:00:08]} 1-0